bitfinex/quotes_BTCUSD_20241111
["timestamp","ask_amount","ask_price","bid_price","bid_amount"]
[1731357716174,0.0772,86967.0,86936.0,0.1]
[1731357716385,0.0772,86967.0,86938.0,0.1]
[1731357716588,0.17065988,86957.0,86940.0,0.1]
[1731357716890,0.17065988,86957.0,86931.0,0.05527547]
[1731357716891,0.17065988,86957.0,86942.0,0.1]
[1731357717100,0.17065988,86957.0,86931.0,0.005]
[1731357717101,0.04686643,86957.0,86944.0,0.1]
[1731357717301,0.04686643,86957.0,86944.0,0.21994075]
[1731357717456,0.24985988,86980.0,86944.0,0.21994075]
[1731357717657,1.5,86979.0,86944.0,0.21994075]
[1731357718075,0.24985988,86980.0,86939.0,0.03346708]
[1731357718076,0.04838801,86969.0,86946.0,0.105]
[1731357718281,0.0017034,86969.0,86961.0,0.1]
[1731357718621,0.0017034,86969.0,86963.0,0.1]
[1731357718837,0.0017034,86969.0,86965.0,0.1]
[1731357719036,0.0017034,86969.0,86963.0,0.13346708]
[1731357719037,0.17265988,86968.0,86967.0,0.1]
[1731357719252,0.0017034,86969.0,86967.0,0.1]
[1731357719253,0.0017034,86969.0,86967.0,0.21994075]
[1731357719467,0.0017034,86969.0,86968.0,0.21994075]
[1731357720217,0.0017034,86969.0,86968.0,0.1]
[1731357720630,0.0017034,86969.0,86952.0,0.0542]
[1731357720840,0.0017034,86969.0,86954.0,0.1]
[1731357721071,0.0017034,86969.0,86956.0,0.1]
[1731357721238,0.0017034,86969.0,86958.0,0.1]
[1731357722463,0.0017034,86969.0,86959.0,0.11994075]
[1731357722667,0.0017034,86969.0,86960.0,0.1]
[1731357722936,0.0017034,86969.0,86962.0,0.1]
[1731357723330,0.0017034,86969.0,86947.0,0.13085628]
[1731357723331,0.0017034,86969.0,86947.0,0.0807]
[1731357723659,0.0017034,86969.0,86941.0,0.005]
[1731357723660,0.0017034,86969.0,86948.0,0.11994075]
[1731357723833,0.0017034,86969.0,86948.0,0.12224059]
[1731357724467,0.0017034,86969.0,86949.0,0.1]
[1731357724671,0.0017034,86969.0,86951.0,0.1]
[1731357725426,0.0017034,86969.0,86952.0,0.00229989]
[1731357725625,0.0017034,86969.0,86952.0,0.00229988]
[1731357725827,0.0017034,86969.0,86942.0,0.01]
[1731357725828,0.0017034,86969.0,86954.0,0.1]
[1731357726033,0.0017034,86969.0,86956.0,0.1]
[1731357726273,0.0017034,86969.0,86958.0,0.1]
[1731357727738,0.0017034,86969.0,86949.0,0.005]
[1731357727965,0.0017034,86969.0,86951.0,0.1]
[1731357728103,0.0017034,86969.0,86963.0,0.1]
[1731357728914,0.0017034,86969.0,86948.0,0.0008509]
[1731357729173,0.0017034,86969.0,86950.0,0.1]
[1731357730282,0.0017034,86969.0,86948.0,0.0008509]
[1731357730283,0.20122622,86969.0,86948.0,0.0008509]
[1731357730545,0.0017034,86969.0,86957.0,0.005]
[1731357730716,0.0017034,86969.0,86956.0,0.005]
[1731357730717,0.0017034,86969.0,86959.0,0.105]
[1731357730950,0.0017034,86969.0,86962.0,0.03349707]
[1731357731078,0.0017034,86969.0,86960.0,0.15387682]
[1731357731079,0.0017034,86969.0,86964.0,0.1]
[1731357731284,0.0017034,86969.0,86966.0,0.1]
[1731357732914,0.0017034,86969.0,86958.0,0.03349707]
[1731357733310,0.0017034,86969.0,86957.0,0.03349707]
[1731357733511,0.0017034,86969.0,86954.0,0.13349707]
[1731357733700,0.0017034,86969.0,86956.0,0.1]
[1731357733908,0.0017034,86969.0,86956.0,0.21994075]
[1731357734469,0.0017034,86969.0,86956.0,0.1]
[1731357734678,0.0017034,86969.0,86948.0,0.05109651]
[1731357734679,0.0017034,86969.0,86951.0,0.00229991]
[1731357734881,0.0017034,86969.0,86953.0,0.03349707]
[1731357735089,0.0017034,86969.0,86956.0,0.03351086]
[1731357735294,0.0017034,86969.0,86963.0,0.005]
[1731357735504,0.0017034,86969.0,86964.0,0.12224008]
[1731357735761,0.0017034,86969.0,86966.0,0.03351086]
[1731357735965,0.0017034,86969.0,86968.0,0.1]
[1731357736163,0.0017034,86969.0,86968.0,0.21994075]
[1731357736371,0.0017034,86969.0,86968.0,0.19140604]
[1731357737971,0.0017034,86969.0,86962.0,0.0797]
[1731357738191,0.0017034,86969.0,86963.0,0.11994075]
[1731357738401,0.0017034,86969.0,86964.0,0.1]
[1731357738627,0.0017034,86969.0,86968.0,0.01]
[1731357738833,0.0017034,86969.0,86968.0,0.23223987]
[1731357739161,0.0017034,86969.0,86968.0,0.30550616]
[1731357739499,0.00146132,86986.0,86985.0,0.01]
[1731357739718,0.00146132,86986.0,86985.0,0.45246357]
[1731357739913,0.00146132,86986.0,86985.0,0.46896357]
[1731357740333,0.00146132,86986.0,86985.0,0.50280661]
[1731357740554,0.001706,86997.0,86996.0,0.30952282]
[1731357740773,0.001706,86997.0,86996.0,0.46286186]
[1731357740965,0.001706,86997.0,86996.0,0.46328163]
[1731357741265,0.001706,86997.0,86996.0,0.51337037]
[1731357741496,0.001706,86997.0,86996.0,0.42946357]
[1731357741714,0.001706,86997.0,86996.0,0.25294075]
[1731357741935,0.0017058,87013.0,87002.0,0.01]
[1731357742135,0.0017058,87013.0,87002.0,0.28902368]
[1731357742360,0.0017058,87013.0,87002.0,0.29102368]
[1731357742517,0.0017058,87013.0,87002.0,0.25723889]
[1731357742716,0.0017058,87013.0,87002.0,0.24794075]
[1731357742918,0.0017058,87013.0,87002.0,0.22494075]
[1731357743132,0.0017058,87013.0,87002.0,0.23223904]
[1731357743566,0.0017058,87013.0,87002.0,0.22994075]
[1731357743945,0.0017058,87013.0,87002.0,0.25494075]
[1731357744208,0.0017058,87013.0,87002.0,0.25294075]
[1731357744545,0.0017058,87013.0,87002.0,0.30173902]
[1731357744748,0.0017058,87013.0,87002.0,0.30144092]
[1731357745345,0.0017058,87013.0,87002.0,0.22994075]
[1731357745808,0.0017058,87013.0,87002.0,0.42946357]
[1731357747517,0.0017058,87013.0,87002.0,0.42446357]
[1731357747726,0.0017058,87013.0,87002.0,0.21994075]
[1731357750330,0.0017058,87013.0,87002.0,0.11994075]
[1731357750447,0.0017058,87013.0,87002.0,0.12453575]
[1731357750892,0.0826,87006.0,86971.0,0.005]
[1731357751092,0.0483,87002.0,86972.0,0.11994075]
[1731357751403,0.0483,87002.0,86989.0,0.004596]
[1731357751828,0.11994075,87001.0,86989.0,0.004596]
[1731357752031,0.11994075,87001.0,86961.0,0.005]
[1731357752239,0.11994075,87001.0,86965.0,0.12994075]
[1731357752467,0.17265988,87000.0,86965.0,0.12994075]
[1731357752670,0.11994075,86999.0,86965.0,0.12994075]
[1731357752840,0.079,86989.0,86965.0,0.12994075]
[1731357753866,0.17265988,86988.0,86965.0,0.12994075]
[1731357754075,0.079,86989.0,86966.0,0.00229949]
[1731357754278,0.078546,86989.0,86966.0,0.00229949]
[1731357754851,0.078546,86989.0,86965.0,0.01]
[1731357754852,0.17265988,86988.0,86965.0,0.01]
[1731357755265,0.0715,86986.0,86965.0,0.01]
[1731357755468,0.11994075,86985.0,86965.0,0.01]
[1731357755815,0.0485,86986.0,86965.0,0.01]
[1731357756599,0.11994075,86985.0,86965.0,0.01]
[1731357760196,0.19952282,86978.0,86948.0,0.0008509]
[1731357760395,1.56662242,86984.0,86948.0,0.0008509]
[1731357760396,0.079,86968.0,86948.0,0.0008509]
[1731357760603,0.11994075,86967.0,86952.0,0.04598]
[1731357761219,1.56662242,86984.0,86952.0,0.04598]
[1731357761220,0.079,86983.0,86952.0,0.04598]
[1731357761419,0.17265988,86978.0,86952.0,0.04598]
[1731357761940,0.11994075,86982.0,86952.0,0.04598]
[1731357762196,0.17265988,86979.0,86952.0,0.04598]
[1731357762410,0.14294075,86978.0,86952.0,0.04598]
[1731357762612,0.19952282,86970.0,86952.0,0.04598]
[1731357762962,0.19952282,86970.0,86948.0,0.1008509]
[1731357762963,0.1275,86965.0,86948.0,0.0008509]
[1731357763158,0.24744075,86965.0,86948.0,0.0008509]
[1731357763877,0.24744075,86965.0,86948.0,0.1008509]
[1731357764932,1.74744075,86965.0,86948.0,0.1008509]
[1731357765541,1.77044075,86965.0,86948.0,0.0008509]
[1731357765719,1.77044075,86965.0,86917.0,0.14307986]
[1731357765720,0.01,86948.0,86947.0,1.86068438]
[1731357765922,0.01,86948.0,86915.0,0.0008509]
[1731357765923,0.005,86939.0,86915.0,0.0008509]
[1731357766123,0.11994075,86938.0,86915.0,0.0008509]
[1731357766477,0.35012282,86948.0,86916.0,0.00230094]
[1731357766478,1.5,86946.0,86916.0,0.00230094]
[1731357766662,1.5,86946.0,86915.0,0.12079165]
[1731357766663,0.17265988,86936.0,86915.0,0.12079165]
[1731357767667,0.29260063,86936.0,86915.0,0.0008509]
[1731357767905,0.11994075,86935.0,86915.0,0.0008509]
[1731357768114,0.19952282,86941.0,86915.0,0.0008509]
[1731357768378,0.17265988,86935.0,86915.0,0.0008509]
[1731357768754,0.11994075,86934.0,86915.0,0.0008509]
[1731357770272,0.17265988,86933.0,86915.0,0.0008509]
[1731357770473,0.01085,86936.0,86915.0,0.0008509]
[1731357770646,0.17265988,86934.0,86915.0,0.00315192]
[1731357771055,0.17265988,86934.0,86915.0,0.0008509]
[1731357772472,0.17265988,86934.0,86922.0,0.1]
[1731357772684,0.17265988,86934.0,86915.0,0.0008509]
[1731357773485,0.11994075,86933.0,86915.0,0.0008509]
[1731357773704,0.11994075,86933.0,86916.0,0.1]
[1731357774976,0.17265988,86932.0,86915.0,0.0008509]
[1731357775219,0.17265988,86932.0,86916.0,0.1]
[1731357776025,0.17265988,86932.0,86915.0,0.0008509]
[1731357778715,0.11994075,86933.0,86917.0,0.1]
[1731357778918,0.17265988,86932.0,86917.0,0.1]
[1731357779615,0.11994075,86931.0,86915.0,0.0008509]
[1731357780113,0.11994075,86931.0,86915.0,0.1008509]
[1731357780738,0.11994075,86931.0,86915.0,0.0008509]
[1731357780997,0.11994075,86931.0,86915.0,0.1008509]
[1731357781213,0.17265988,86930.0,86915.0,0.0008509]
[1731357781828,0.11994075,86931.0,86915.0,0.0008509]
[1731357782290,0.11994075,86931.0,86915.0,0.1008509]
[1731357782621,0.17265988,86928.0,86915.0,0.1008509]
[1731357782817,0.17265988,86928.0,86915.0,0.0008509]
[1731357783012,0.05632989,86936.0,86915.0,0.0008509]
[1731357783214,0.05632989,86936.0,86915.0,0.26879165]
[1731357783215,0.17265988,86935.0,86915.0,0.26879165]
[1731357783419,0.05632989,86936.0,86917.0,0.1]
[1731357783643,0.17265988,86935.0,86919.0,0.1]
[1731357783865,0.17265988,86935.0,86920.0,0.11994075]
[1731357784066,0.05632989,86936.0,86921.0,0.1]
[1731357784328,0.17265988,86935.0,86921.0,0.21994075]
[1731357784567,0.19101087,86935.0,86921.0,0.1]
[1731357784778,0.17265988,86932.0,86921.0,0.1]
[1731357785008,0.01085,86936.0,86915.0,0.0008509]
[1731357785009,0.17265988,86931.0,86915.0,0.0008509]
[1731357785227,0.29260063,86931.0,86915.0,0.0008509]
[1731357785646,0.11994075,86931.0,86915.0,0.0008509]
[1731357785993,0.17265988,86924.0,86915.0,0.0008509]
[1731357786197,0.0805,86930.0,86915.0,0.0008509]
[1731357786490,0.11994075,86929.0,86915.0,0.0008509]
[1731357786898,0.11994075,86929.0,86921.0,0.0008519]
[1731357787118,0.09294075,86929.0,86921.0,0.0008519]
[1731357788268,0.01085,86936.0,86921.0,0.0835519]
[1731357788481,0.17265988,86935.0,86921.0,0.0008519]
[1731357789570,0.13079075,86936.0,86921.0,0.0008519]
[1731357789787,0.29260063,86934.0,86921.0,0.0008519]
[1731357790456,1.5,86933.0,86921.0,0.0008519]
[1731357790671,0.17265988,86924.0,86921.0,0.0008519]
[1731357790891,0.13197425,86916.0,86915.0,0.0008509]
[1731357791086,0.251915,86916.0,86915.0,0.0008509]
[1731357791330,0.251915,86916.0,86887.0,0.0456]
[1731357791331,0.251915,86916.0,86913.0,0.0017006]
[1731357791550,0.11994075,86915.0,86913.0,0.0017006]
[1731357791787,0.13197425,86903.0,86883.0,0.0827]
[1731357791997,0.11994075,86902.0,86891.0,0.004601]
[1731357792885,0.11994075,86902.0,86879.0,0.0008511]
[1731357793107,0.19991742,86895.0,86879.0,0.0008511]
[1731357793334,0.11994075,86894.0,86881.0,0.004602]
[1731357793550,0.11994075,86894.0,86879.0,0.0008511]
[1731357794005,0.11994075,86894.0,86881.0,0.004602]
[1731357794454,1.5,86893.0,86881.0,0.004602]
[1731357794669,1.5,86893.0,86879.0,0.0008511]
[1731357794670,0.11994075,86892.0,86879.0,0.0008511]
[1731357795142,0.11994075,86892.0,86880.0,0.004603]
[1731357795369,0.05498582,86891.0,86879.0,0.0008511]
[1731357795595,0.11994075,86890.0,86879.0,0.0008511]
[1731357795811,0.19134075,86890.0,86879.0,0.0008511]
[1731357796694,0.14294075,86890.0,86879.0,0.0008511]
[1731357797152,0.14794075,86890.0,86879.0,0.0008511]
[1731357797375,0.14794075,86890.0,86861.0,0.0008511]
[1731357797376,0.005,86876.0,86861.0,0.0008511]
[1731357797607,0.002,86884.0,86861.0,0.0008511]
[1731357797608,0.22291742,86865.0,86861.0,0.0008511]
[1731357797847,0.1051,86864.0,86832.0,0.0821]
[1731357798076,0.1051,86864.0,86828.0,0.0008513]
[1731357798077,0.028,86852.0,86828.0,0.0008513]
[1731357798308,0.19991742,86832.0,86828.0,0.0008513]
[1731357798510,0.34785817,86832.0,86828.0,0.0008513]
[1731357798713,0.14294075,86832.0,86828.0,0.0008513]
[1731357798948,0.14594075,86832.0,86828.0,0.0008513]
[1731357799207,0.005,86830.0,86828.0,0.0008513]
[1731357799425,0.11994075,86829.0,86828.0,0.0008513]
[1731357801215,0.19991742,86844.0,86828.0,0.0008513]
[1731357801432,0.17265988,86840.0,86828.0,0.0008513]
[1731357801626,1.61994075,86839.0,86828.0,0.0008513]
[1731357801876,0.11994075,86839.0,86828.0,0.0008513]
[1731357802101,0.17265988,86849.0,86828.0,0.0008513]
[1731357802451,0.17265988,86846.0,86828.0,0.0008513]
[1731357802879,0.11994075,86845.0,86828.0,0.0008513]
[1731357803101,0.02926006,86844.0,86828.0,0.0008513]
[1731357803330,0.17265988,86837.0,86828.0,0.0008513]
[1731357803534,0.20491742,86835.0,86828.0,0.0008513]
[1731357803763,0.11994075,86835.0,86828.0,0.0008513]
[1731357803949,1.5,86841.0,86828.0,0.0008513]
[1731357804187,0.29260063,86840.0,86828.0,0.0008513]
[1731357804565,0.11994075,86840.0,86828.0,0.0008513]
[1731357804773,0.17265988,86851.0,86829.0,0.0805]
[1731357805191,0.17265988,86842.0,86832.0,0.0475]
[1731357805416,0.17265988,86851.0,86832.0,0.0475]
[1731357806336,0.21854045,86860.0,86832.0,0.0475]
[1731357806536,0.17265988,86850.0,86833.0,0.00230311]
[1731357806765,0.11994075,86859.0,86832.0,0.0475]
[1731357806984,0.17265988,86851.0,86832.0,0.0475]
[1731357807704,0.11994075,86850.0,86832.0,0.0475]
[1731357808656,0.21854045,86860.0,86832.0,0.0475]
[1731357808867,0.17265988,86851.0,86832.0,0.0475]
[1731357809611,0.11994075,86859.0,86833.0,0.00230311]
[1731357809887,0.17265988,86851.0,86833.0,0.00230311]
[1731357810079,0.17265988,86851.0,86835.0,0.1]
[1731357810289,0.17265988,86851.0,86836.0,0.00230287]
[1731357810511,0.17265988,86851.0,86835.0,0.21994075]
[1731357810902,0.17265988,86842.0,86835.0,0.1]
[1731357811106,0.17265988,86842.0,86832.0,0.0475]
[1731357811107,0.17265988,86851.0,86832.0,0.0475]
[1731357811315,0.21854045,86860.0,86832.0,0.0483529]
[1731357811316,0.17265988,86848.0,86832.0,0.0483529]
[1731357811528,0.29260063,86848.0,86832.0,0.0483529]
[1731357814073,0.17265988,86848.0,86832.0,0.0483529]
[1731357814293,1.5,86859.0,86832.0,0.0483529]
[1731357814504,0.17265988,86851.0,86834.0,0.1]
[1731357814729,0.17265988,86851.0,86833.0,0.12224384]
[1731357814730,0.17265988,86860.0,86836.0,0.1]
[1731357814960,0.17265988,86850.0,86838.0,0.1]
[1731357815378,0.21868277,86860.0,86839.0,0.00230282]
[1731357816359,0.21868277,86860.0,86840.0,0.11994075]
[1731357816567,0.21868277,86860.0,86841.0,0.10230274]
[1731357816765,0.04602289,86860.0,86843.0,0.1]
[1731357816963,0.17265988,86859.0,86845.0,0.1]
[1731357817171,0.17265988,86849.0,86847.0,0.1]
[1731357817374,0.17265988,86859.0,86847.0,0.1]
[1731357818327,0.17265988,86859.0,86845.0,0.1]
[1731357819420,0.219916,86859.0,86845.0,0.1]
[1731357820820,0.04725612,86859.0,86845.0,0.1]
[1731357821025,0.19991742,86868.0,86845.0,0.1]
[1731357821232,0.11994075,86867.0,86845.0,0.1]
[1731357821405,0.17265988,86866.0,86847.0,0.1]
[1731357821634,0.19991742,86887.0,86849.0,0.1]
[1731357821835,0.19991742,86887.0,86847.0,0.105]
[1731357821836,0.17265988,86865.0,86851.0,0.1]
[1731357822087,0.17265988,86865.0,86847.0,0.005]
[1731357822088,0.17265988,86865.0,86853.0,0.1]
[1731357822356,1.71951404,86879.0,86853.0,0.1]
[1731357822559,0.17265988,86867.0,86853.0,0.1]
[1731357823173,0.17265988,86867.0,86845.0,0.1]
[1731357823344,0.31985817,86866.0,86845.0,0.1]
[1731357824002,0.31985817,86866.0,86832.0,0.0008529]
[1731357824003,0.19991742,86846.0,86834.0,0.0756]
[1731357824367,0.19991742,86856.0,86834.0,0.0756]
[1731357824567,0.17265988,86854.0,86834.0,0.0756]
[1731357824770,0.19991742,86865.0,86834.0,0.0756]
[1731357824970,0.17265988,86857.0,86835.0,0.00230299]
[1731357825535,1.5,86856.0,86834.0,0.0756]
[1731357826160,0.17265988,86857.0,86834.0,0.0756]
[1731357826603,1.5,86856.0,86835.0,0.00230296]
[1731357827757,0.17265988,86857.0,86836.0,0.25402449]
[1731357827966,0.01,86885.0,86837.0,0.03638655]
[1731357828194,0.01,86885.0,86834.0,0.27551742]
[1731357828195,0.17265988,86856.0,86839.0,0.1]
[1731357828396,0.17265988,86856.0,86835.0,0.005]
[1731357828397,0.17265988,86856.0,86841.0,0.1]
[1731357828641,0.17265988,86856.0,86843.0,0.1]
[1731357828763,0.17265988,86856.0,86845.0,0.1]
[1731357828962,0.17265988,86856.0,86846.0,0.03408374]
[1731357830252,0.22195118,86867.0,86848.0,0.1]
[1731357830457,0.22195118,86867.0,86850.0,0.1776]
[1731357830657,0.22195118,86867.0,86852.0,0.1]
[1731357830895,0.22195118,86867.0,86850.0,0.1776]
[1731357830896,0.001706,86867.0,86859.0,0.005]
[1731357831103,0.001706,86867.0,86861.0,0.1776]
[1731357831233,0.001706,86867.0,86863.0,0.1]
[1731357831463,0.17265988,86866.0,86865.0,0.1]
[1731357831691,0.001706,86867.0,86865.0,0.03408374]
[1731357831908,0.001706,86867.0,86866.0,0.03408374]
[1731357832334,0.001706,86867.0,86864.0,0.03408374]
[1731357832547,0.001706,86867.0,86866.0,0.1]
[1731357832757,0.001706,86867.0,86866.0,0.13408374]
[1731357833375,0.001706,86867.0,86866.0,0.25402449]
[1731357834807,0.001706,86867.0,86866.0,0.1]
[1731357835011,0.001706,86867.0,86861.0,0.0776]
[1731357835436,0.17265988,86866.0,86861.0,0.0776]
[1731357835608,0.001706,86867.0,86861.0,0.0776]
[1731357835609,0.023882,86864.0,86861.0,0.0776]
[1731357835998,0.023882,86864.0,86853.0,0.1]
[1731357836570,0.023882,86864.0,86852.0,0.0776]
[1731357836571,0.17265988,86863.0,86852.0,0.0776]
[1731357836789,0.17265988,86863.0,86848.0,0.00025]
[1731357836994,0.023882,86864.0,86848.0,0.00255262]
[1731357837196,0.023882,86864.0,86848.0,0.00025]
[1731357837405,1.67265988,86863.0,86848.0,0.00025]
[1731357837833,0.17265988,86863.0,86848.0,0.00025]
[1731357838292,0.17265988,86861.0,86850.0,0.1]
[1731357838623,0.17265988,86861.0,86848.0,0.03387216]
[1731357838624,0.17265988,86861.0,86852.0,0.1]
[1731357839034,0.023882,86864.0,86853.0,0.00230248]
[1731357839236,0.023882,86864.0,86854.0,0.1]
[1731357839450,0.023882,86864.0,86856.0,0.1]
[1731357839668,0.023882,86864.0,86858.0,0.13362216]
[1731357839869,0.0705537,86864.0,86860.0,0.1]
[1731357840036,0.023882,86864.0,86861.0,0.03407383]
[1731357840217,0.023882,86864.0,86863.0,0.1]
[1731357840424,0.023882,86864.0,86863.0,0.13407383]
[1731357840867,0.023882,86864.0,86863.0,0.1]
[1731357841010,0.023882,86864.0,86863.0,0.1340766]
[1731357841625,0.023882,86864.0,86863.0,0.30221735]
[1731357841854,0.023882,86864.0,86863.0,0.38625276]
[1731357842073,0.023882,86864.0,86863.0,0.1822766]
[1731357842282,0.023882,86864.0,86863.0,0.11588653]
[1731357842501,0.023882,86864.0,86863.0,0.0340766]
[1731357842740,0.023882,86864.0,86859.0,0.1776]
[1731357842952,0.023882,86864.0,86860.0,0.13407598]
[1731357843169,0.023882,86864.0,86861.0,0.03637491]
[1731357843377,0.023882,86864.0,86862.0,0.03407263]
[1731357843720,0.023882,86864.0,86861.0,0.00230228]
[1731357843939,0.023882,86864.0,86859.0,0.03360993]
[1731357843940,0.17265988,86863.0,86859.0,0.03360993]
[1731357844148,0.023882,86864.0,86853.0,0.03360993]
[1731357844405,0.023882,86864.0,86850.0,0.03360993]
[1731357844628,0.023882,86864.0,86851.0,0.03409068]
[1731357844863,0.17265988,86862.0,86851.0,0.03409068]
[1731357845265,0.17265988,86862.0,86851.0,0.03360993]
[1731357845691,0.17265988,86862.0,86849.0,0.03360993]
[1731357846101,0.023882,86864.0,86849.0,0.03360993]
[1731357846323,0.023882,86864.0,86851.0,0.03360993]
[1731357846734,0.023882,86864.0,86853.0,0.03360993]
[1731357846943,0.001706,86862.0,86856.0,0.03360993]
[1731357847145,0.001706,86862.0,86857.0,0.06770024]
[1731357847364,0.001706,86862.0,86859.0,0.03360993]
[1731357847571,0.001706,86862.0,86860.0,0.03360993]
[1731357847572,0.17265988,86861.0,86860.0,0.03360993]
[1731357847785,0.001706,86862.0,86859.0,0.03360993]
[1731357847986,0.001706,86862.0,86858.0,0.13360993]
[1731357848239,0.001706,86862.0,86858.0,0.1]
[1731357848655,0.001706,86862.0,86855.0,0.03360993]
[1731357849267,0.001706,86862.0,86859.0,0.03360993]
[1731357849489,0.001706,86862.0,86858.0,0.03360993]
[1731357849693,0.001706,86862.0,86857.0,0.1]
[1731357849900,0.001706,86862.0,86857.0,0.13360993]
[1731357850111,0.001706,86862.0,86857.0,0.1]
[1731357850315,0.001706,86862.0,86858.0,0.03360993]
[1731357850526,0.001706,86862.0,86857.0,0.03360993]
[1731357850761,0.001706,86862.0,86851.0,0.03360993]
[1731357850762,0.29260063,86861.0,86851.0,0.03360993]
[1731357850984,0.29260063,86861.0,86849.0,0.05041167]
[1731357850985,0.03198946,86860.0,86850.0,0.03360993]
[1731357851195,0.03198946,86860.0,86848.0,0.05066167]
[1731357851196,0.11994075,86859.0,86849.0,0.03360993]
[1731357851410,0.11994075,86859.0,86848.0,0.03385993]
[1731357851628,0.11994075,86859.0,86848.0,0.00025]
[1731357852294,0.17265988,86858.0,86848.0,0.00025]
[1731357852651,1.5,86857.0,86848.0,0.00025]
[1731357853056,1.5,86857.0,86848.0,0.02300993]
[1731357853261,1.5,86857.0,86845.0,0.05041167]
[1731357853471,1.5,86857.0,86849.0,0.05055845]
[1731357853704,1.5,86857.0,86852.0,0.05055845]
[1731357853905,0.001706,86862.0,86853.0,0.05055845]
[1731357854124,0.17265988,86860.0,86854.0,0.05055845]
[1731357854349,0.001706,86862.0,86855.0,0.05055845]
[1731357854582,0.001706,86862.0,86853.0,0.05055845]
[1731357854778,0.001706,86862.0,86855.0,0.05055845]
[1731357854992,0.001706,86862.0,86852.0,0.16741127]
[1731357854993,0.001706,86862.0,86856.0,0.05055845]
[1731357855211,0.001706,86862.0,86858.0,0.05055845]
[1731357855409,0.001706,86862.0,86859.0,0.05055845]
[1731357855614,0.001706,86862.0,86859.0,0.1]
[1731357855818,0.04832325,86862.0,86859.0,0.05055845]
[1731357856071,0.001706,86862.0,86859.0,0.05055845]
[1731357856266,0.001706,86862.0,86857.0,0.1]
[1731357856685,0.001706,86862.0,86849.0,0.1]
[1731357856882,0.001706,86862.0,86847.0,0.15055845]
[1731357857136,0.001706,86862.0,86849.0,0.05055845]
[1731357857355,0.001706,86862.0,86851.0,0.05055845]
[1731357857528,0.17265988,86860.0,86850.0,0.05055845]
[1731357858080,0.001706,86862.0,86850.0,0.05055845]
[1731357858288,0.001706,86862.0,86852.0,0.05055845]
[1731357858513,0.001706,86862.0,86857.0,0.05055845]
[1731357858514,0.17436588,86862.0,86857.0,0.05055845]
[1731357858762,0.17436588,86862.0,86859.0,0.05055845]
[1731357858763,0.001706,86862.0,86859.0,0.05055845]
[1731357858890,0.001706,86862.0,86855.0,0.1]
[1731357858891,0.001706,86862.0,86855.0,0.15055845]
[1731357859275,0.001706,86862.0,86857.0,0.05055845]
[1731357859498,0.001706,86862.0,86855.0,0.1]
[1731357859499,0.17265988,86861.0,86858.0,0.05055845]
[1731357859701,0.001706,86862.0,86855.0,0.15055845]
[1731357859924,0.001706,86862.0,86850.0,0.05055845]
[1731357860143,0.17265988,86861.0,86852.0,0.05055845]
[1731357860348,0.17265988,86861.0,86851.0,0.15055845]
[1731357860568,0.001706,86862.0,86851.0,0.1]
[1731357860987,0.001706,86862.0,86851.0,0.15055845]
[1731357861627,0.17265988,86858.0,86851.0,0.05055845]
[1731357861958,0.001706,86862.0,86850.0,0.05055845]
[1731357862186,0.001706,86862.0,86854.0,0.05055845]
[1731357862340,0.001706,86862.0,86856.0,0.09955845]
[1731357862549,0.001706,86862.0,86860.0,0.05055845]
[1731357862748,0.001706,86862.0,86861.0,0.2540862]
[1731357863340,0.025588,86864.0,86863.0,0.007]
[1731357863576,0.025588,86864.0,86863.0,0.2590862]
[1731357863783,0.025588,86864.0,86863.0,0.2540862]
[1731357864865,0.025588,86864.0,86863.0,0.4158862]
[1731357865038,0.17265988,86878.0,86866.0,0.33302357]
[1731357865251,0.17265988,86878.0,86866.0,0.48910977]
[1731357865568,0.17265988,86878.0,86866.0,0.2640862]
[1731357865985,0.17265988,86878.0,86866.0,0.2590862]
[1731357866202,0.17265988,86878.0,86866.0,0.23522177]
[1731357866397,0.17265988,86878.0,86866.0,0.03414545]
[1731357866615,0.17265988,86878.0,86865.0,0.03414545]
[1731357866922,0.17265988,86878.0,86865.0,0.03914545]
[1731357867156,0.17265988,86878.0,86866.0,0.03414545]
[1731357867357,0.17265988,86878.0,86866.0,0.03644751]
[1731357867821,0.17265988,86878.0,86866.0,0.03414545]
[1731357868069,0.17265988,86878.0,86866.0,0.25638826]
[1731357868281,0.17265988,86878.0,86866.0,0.45641183]
[1731357868464,0.17265988,86878.0,86866.0,0.45410977]
[1731357869031,0.17265988,86878.0,86866.0,0.2540862]
[1731357869947,0.17265988,86878.0,86866.0,0.35506732]
[1731357870841,0.17265988,86878.0,86866.0,0.2540862]
[1731357871889,0.17265988,86888.0,86866.0,0.2540862]
[1731357872017,0.17265988,86877.0,86866.0,0.35736936]
[1731357872253,0.17265988,86877.0,86866.0,0.2840862]
[1731357872465,0.17265988,86877.0,86866.0,0.29138805]
[1731357872913,0.17265988,86910.0,86866.0,0.29138805]
[1731357872914,0.04601185,86898.0,86884.0,0.0784]
[1731357873113,0.17265988,86891.0,86888.0,0.0471]
[1731357873285,0.17265988,86891.0,86889.0,0.2540862]
[1731357873467,0.04702556,86900.0,86893.0,0.005]
[1731357873674,0.04702556,86900.0,86897.0,0.05040044]
[1731357873871,0.17265988,86910.0,86899.0,0.1]
[1731357874097,0.17265988,86910.0,86900.0,0.0336024]
[1731357874504,0.17265988,86910.0,86899.0,0.1]
[1731357874747,0.04621249,86910.0,86902.0,0.0336024]
[1731357874958,0.17265988,86928.0,86910.0,0.0784]
[1731357875109,0.17265988,86914.0,86912.0,0.15036047]
[1731357875313,0.17265988,86928.0,86914.0,0.1]
[1731357875591,0.17265988,86928.0,86916.0,0.1]
[1731357875806,0.17265988,86928.0,86917.0,0.03354491]
[1731357876150,0.17265988,86928.0,86918.0,0.03354491]
[1731357876344,0.0017048,86935.0,86916.0,0.1]
[1731357876345,0.0017048,86935.0,86919.0,0.00230073]
[1731357876541,0.0017048,86935.0,86916.0,0.1]
[1731357876904,0.0017048,86935.0,86918.0,0.1]
[1731357877241,0.0017048,86935.0,86920.0,0.1]
[1731357877622,0.04794529,86935.0,86920.0,0.10230071]
[1731357877750,0.04794529,86935.0,86921.0,0.11994075]
[1731357877967,0.0017048,86935.0,86924.0,0.005]
[1731357878163,0.0017048,86935.0,86926.0,0.1]
[1731357878382,0.0017048,86935.0,86923.0,0.005]
[1731357878383,0.0017048,86935.0,86930.0,0.005]